[Event "FISU WUMSCC Men 2024"]
[Site "Entebbe"]
[Date "2024.06.26"]
[Round "3.9"]
[White "Nyola Wasswa Mark"]
[Black "Wagner, Gerald"]
[Result "1-0"]
[ECO "A64"]
[WhiteElo "2067"]
[BlackElo "1832"]
[Annotator "RC"]
[PlyCount "77"]
[EventDate "2024.06.24"]
[EventType "swiss"]
[EventCountry "UGA"]
[SourceTitle "playchess.com"]
[Source "ChessBase"]
[SourceQuality "1"]
[TimeControl "5400+30"]

1. d4 {[%emt 0:00:02]} Nf6 {[%emt 0:00:05]} 2. c4 {[%emt 0:00:09]} e6 {[%emt 0:00:06]} 3. Nc3 {[%emt 0:00:06]} c5 {[%emt 0:01:12]} 4. d5 {[%emt 0:00:13]} exd5 {[%emt 0:00:05]} 5. cxd5 {[%emt 0:00:11]} d6 {[%emt 0:00:04]} 6. Nf3 {[%emt 0:01:33]} g6 {[%emt 0:00:06]} 7. g3 {[%emt 0:00:16]} Bg7 {[%emt 0:00:07]} 8. Bg2 {[%emt 0:00:16]} O-O {[%emt 0:00:21]} 9. O-O {[%emt 0:00:07]} a6 {[%emt 0:01:42]} 10. a4 {[%emt 0:00:12]} Re8 {[%emt 0:01:27]} 11. Nd2 {[%emt 0:06:25]} Nbd7 {[%emt 0:06:32]} 12. h3 {[%emt 0:08:34]} Rb8 {[%emt 0:14:22]} 13. Nc4 {[%emt 0:09:01]} Nb6 14. Nxb6 {[%emt 0:16:07]} Qxb6 {[%emt 0:00:15]} 15. a5 {[%emt 0:00:10]} Qc7 {[%emt 0:00:02]} 16. Qa4 b5 {[%emt 0:10:22]} 17. axb6 {[%emt 0:10:44]} Rxb6 {[%emt 0:00:11]} 18. Qh4 {[%emt 0:02:38]} Rb4 {[%emt 0:01:28]} 19. e4 {[%emt 0:04:29]} a5 {[%emt 0:20:58]} 20. g4 {[%emt 0:04:36]} Ba6 {[%emt 0:03:43]} 21. Rd1 {[%emt 0:04:49]} Nd7 {[%emt 0:02:55]} 22. f4 {[%emt 0:01:05]} c4 {[%emt 0:06:32]} 23. Kh1 {[%emt 0:05:49]} Nc5 {[%emt 0:03:29]} 24. e5 {[%emt 0:01:12]} Nb3 {[%emt 0:02:34]} 25. Rb1 dxe5 {[%emt 0:06:38]} 26. d6 {[%emt 0:08:56]} Qd7 {[%emt 0:02:54]} 27. Nd5 {[%emt 0:02:23]} Qxd6 {[%emt 0:01:09]} 28. fxe5 {[%emt 0:00:07]} Bxe5 {[%emt 0:02:01]} 29. Bg5 {[%emt 0:00:30]} Nd4 {[%emt 0:07:42]} 30. Re1 {[%emt 0:03:16]} Ne6 {[%emt 0:03:47]} 31. Rxe5 {[%emt 0:00:26]} Qxe5 {[%emt 0:01:22]} 32. Nf6+ {[%emt 0:00:07]} Qxf6 {[%emt 0:00:59]} 33. Bxf6 {[%emt 0:00:05]} Bb7 {[%emt 0:01:10]} 34. Bxb7 {[%emt 0:01:13]} Rxb7 {[%emt 0:00:04]} 35. Qh6 {[%emt 0:00:47]} a4 {[%emt 0:00:19]} 36. Rc1 {[%emt 0:00:31]} Rc8 {[%emt 0:00:16]} 37. Bc3 {[%emt 0:00:28]} Rd7 {[%emt 0:01:06]} 38. Re1 {[%emt 0:01:55]} Rc5 {[%emt 0:00:32]} 39. Qf4 {[%emt 0:01:13]} 1-0

[Event "FISU WUMSCC Men 2024"]
[Site "Entebbe"]
[Date "2024.06.26"]
[Round "3.10"]
[White "Selepe, Lwazi"]
[Black "Musasizi, Emmanuel"]
[Result "1-0"]
[ECO "B01"]
[WhiteElo "1913"]
[BlackElo "1966"]
[Annotator "RC"]
[PlyCount "85"]
[EventDate "2024.06.24"]
[EventType "swiss"]
[EventCountry "UGA"]
[SourceTitle "playchess.com"]
[Source "ChessBase"]
[SourceQuality "1"]
[TimeControl "5400+30"]

1. e4 {[%emt 0:00:05]} d5 {[%emt 0:01:25]} 2. exd5 {[%emt 0:00:39]} Qxd5 {[%emt 0:00:08]} 3. Nc3 {[%emt 0:00:07]} Qd8 {[%emt 0:00:13]} 4. d4 {[%emt 0:00:13]} c6 {[%emt 0:00:28]} 5. Nf3 {[%emt 0:00:31]} Nf6 {[%emt 0:00:18]} 6. Bc4 {[%emt 0:00:28]} Bf5 {[%emt 0:00:39]} 7. Ne5 {[%emt 0:04:18]} e6 {[%emt 0:01:19]} 8. g4 {[%emt 0:02:37]} Be4 {[%emt 0:05:18]} 9. Rg1 {[%emt 0:01:32]} Bd5 {[%emt 0:00:30]} 10. Nxd5 {[%emt 0:03:17]} exd5 {[%emt 0:04:43]} 11. Bd3 {[%emt 0:00:45]} Nfd7 {[%emt 0:04:33]} 12. Qe2 {[%emt 0:08:02]} Nxe5 {[%emt 0:02:34]} 13. dxe5 {[%emt 0:00:55]} Nd7 {[%emt 0:00:32]} 14. Bf4 {[%emt 0:04:44]} Nc5 {[%emt 0:01:58]} 15. O-O-O {[%emt 0:00:47]} Be7 {[%emt 0:02:01]} 16. Kb1 {[%emt 0:01:01]} Qb6 {[%emt 0:02:39]} 17. Be3 {[%emt 0:04:04]} O-O-O {[%emt 0:05:34]} 18. Bf5+ {[%emt 0:00:54]} Kb8 {[%emt 0:01:04]} 19. Bd4 {[%emt 0:03:14]} Qc7 20. f4 {[%emt 0:07:20]} g6 {[%emt 0:14:00]} 21. Bd3 {[%emt 0:05:01]} Nxd3 {[%emt 0:10:38]} 22. Rxd3 {[%emt 0:00:02]} Rhe8 {[%emt 0:00:28]} 23. Rh3 {[%emt 0:04:19]} c5 24. Bf2 {[%emt 0:02:54]} Rh8 {[%emt 0:03:02]} 25. f5 {[%emt 0:01:23]} Qc6 {[%emt 0:04:24]} 26. e6 {[%emt 0:04:43]} fxe6 {[%emt 0:02:49]} 27. Re3 {[%emt 0:00:19]} gxf5 {[%emt 0:09:03]} 28. Rxe6 {[%emt 0:01:44]} Bd6 {[%emt 0:00:29]} 29. gxf5 {[%emt 0:00:43]} Rhe8 {[%emt 0:04:06]} 30. Bh4 {[%emt 0:07:16]} Rxe6 {[%emt 0:03:27]} 31. Qxe6 {[%emt 0:02:29]} Rc8 {[%emt 0:06:10]} 32. h3 {[%emt 0:08:30]} d4 {[%emt 0:01:14]} 33. f6 {[%emt 0:03:38]} Re8 {[%emt 0:03:36]} 34. Qf5 {[%emt 0:01:53]} Bh2 {[%emt 0:02:41]} 35. Rf1 {[%emt 0:02:23]} Bd6 {[%emt 0:00:36]} 36. f7 {[%emt 0:00:34]} Rf8 {[%emt 0:01:28]} 37. Bg5 {[%emt 0:00:24]} c4 {[%emt 0:02:23]} 38. Bh6 {[%emt 0:00:54]} Rc8 {[%emt 0:01:01]} 39. f8=Q {[%emt 0:02:01]} Bxf8 {[%emt 0:00:19]} 40. Bxf8 {[%emt 0:00:09]} d3 {[%emt 0:00:23]} 41. cxd3 {[%emt 0:02:30]} c3 {[%emt 0:00:18]} 42. bxc3 {[%emt 0:01:17]} Qxc3 {[%emt 0:00:40]} 43. Bd6+ {[%emt 0:00:06]} 1-0